bitfinex/quotes_SOLUSD_20240616
["timestamp","ask_amount","ask_price","bid_price","bid_amount"]
[1718540742227,21.8001,145.31,145.25,2.5473]
[1718540742709,21.8001,145.31,145.25,15.2838]
[1718540742940,21.8001,145.31,145.25,7.6419]
[1718540743541,21.8001,145.31,145.25,15.2838]
[1718540743724,21.8001,145.31,145.25,7.6419]
[1718540744437,16.3756,145.34,145.29,2.5465]
[1718540744632,16.3756,145.34,145.23,9.8384]
[1718540744633,16.3756,145.34,145.28,15.2805]
[1718540744937,18.9213,145.34,145.27,25.4685]
[1718540745513,0.51,145.33,145.27,7.6405]
[1718540745724,0.51,145.33,145.27,2.5468]
[1718540746424,0.51,145.33,145.28,7.6402]
[1718540748140,16.5456,145.34,145.29,2.5465]
[1718540748346,16.5456,145.34,145.29,7.6397]
[1718540748518,16.5456,145.34,145.29,7.6396]
[1718540749723,16.3756,145.34,145.29,7.6396]
[1718540751230,16.3756,145.34,145.29,2.5465]
[1718540752145,16.3756,145.34,145.28,22.9204]
[1718540752342,16.3756,145.34,145.28,25.467]
[1718540752826,16.3756,145.34,145.28,7.64]
[1718540755031,16.3756,145.34,145.28,15.2803]
[1718540755355,16.3756,145.34,145.28,2.5466]
[1718540756060,16.3756,145.34,145.27,2.5468]
[1718540756061,0.51,145.33,145.27,2.5468]
[1718540756263,0.51,145.33,145.27,7.6406]
[1718540757257,0.51,145.33,145.28,2.5468]
[1718540758658,0.51,145.33,145.28,7.6404]
[1718540759454,0.51,145.33,145.28,2.5468]
[1718540760349,0.51,145.33,145.28,7.6404]
[1718540760535,0.51,145.33,145.27,25.4693]
[1718540760854,0.17,145.32,145.28,2.5467]
[1718540761252,0.17,145.32,145.29,2.5466]
[1718540761442,0.51,145.33,145.29,2.5466]
[1718540761850,0.51,145.33,145.28,25.4675]
[1718540762347,0.51,145.33,145.28,2.5466]
[1718540762547,0.51,145.33,145.23,9.8384]
[1718540762750,0.17,145.32,145.27,2.5469]
[1718540763457,0.17,145.32,145.27,7.6408]
[1718540763669,0.17,145.32,145.27,2.5469]
[1718540763851,0.17,145.32,145.26,22.9234]
[1718540764160,0.17,145.32,145.27,2.5469]
[1718540765268,0.17,145.32,145.27,7.6408]
[1718540768033,0.17,145.32,145.28,2.5468]
[1718540768230,0.17,145.32,145.28,7.6403]
[1718540768648,0.17,145.32,145.28,15.2806]
[1718540769169,0.17,145.32,145.28,22.921]
[1718540769380,0.17,145.32,145.28,7.6402]
[1718540769943,0.17,145.32,145.28,2.5467]
[1718540771469,0.51,145.33,145.28,2.5467]
[1718540774372,0.51,145.33,145.27,25.4685]
[1718540774877,0.51,145.33,145.28,2.5468]
[1718540775576,0.51,145.33,145.27,25.4685]
[1718540776680,0.51,145.33,145.27,17.828]
[1718540776974,0.51,145.33,145.27,7.6405]
[1718540777569,3.0559,145.33,145.27,2.5468]
[1718540778077,0.51,145.33,145.27,2.5468]
[1718540778449,3.0559,145.33,145.27,2.5468]
[1718540781962,3.0559,145.33,145.26,25.4702]
[1718540782167,0.17,145.31,145.25,2.5472]
[1718540782363,15.1097,145.3,145.25,2.5472]
[1718540783669,15.1097,145.3,145.25,7.6418]
[1718540784273,15.1097,145.3,145.25,15.2837]
[1718540784491,15.1097,145.3,145.26,2.5471]
[1718540786069,15.1097,145.3,145.26,7.6414]
[1718540786763,15.1097,145.3,145.26,12.7356]
[1718540786984,15.1097,145.3,145.27,2.5469]
[1718540790792,15.1097,145.3,145.28,2.5467]
[1718540791478,15.1097,145.3,145.27,25.4692]
[1718540791876,15.1097,145.3,145.27,17.8284]
[1718540792679,15.1097,145.3,145.27,7.6406]
[1718540792881,15.1097,145.3,145.27,2.5468]
[1718540793702,15.1097,145.3,145.27,2.5469]
[1718540795408,15.1097,145.3,145.27,7.6408]
[1718540795710,15.1097,145.3,145.27,15.2817]
[1718540796411,15.1097,145.3,145.27,7.6408]
[1718540797601,15.1097,145.3,145.27,2.5469]
[1718540798705,15.1097,145.3,145.26,25.4702]
[1718540800483,15.1097,145.3,145.25,25.4721]
[1718540800686,15.1097,145.3,145.26,2.5471]
[1718540802588,15.1097,145.3,145.26,7.6413]
[1718540803522,15.1097,145.3,145.26,2.5471]
[1718540804199,15.1097,145.3,145.26,7.6413]
[1718540804821,15.1097,145.3,145.26,15.2827]
[1718540805615,15.1097,145.3,145.27,2.5469]
[1718540806616,15.1097,145.3,145.27,7.6408]
[1718540807020,15.1097,145.3,145.26,2.5471]
[1718540807722,15.1097,145.3,145.26,7.6413]
[1718540808317,15.1097,145.3,145.26,2.5471]
[1718540809434,15.1097,145.3,145.26,7.6413]
[1718540811225,15.1097,145.3,145.26,15.2827]
[1718540812438,15.1097,145.3,145.26,25.4712]
[1718540812815,15.1097,145.3,145.27,2.5469]
[1718540813834,0.34,145.29,145.26,7.6412]
[1718540814313,0.34,145.29,145.26,15.2826]
[1718540817036,0.34,145.29,145.27,2.5469]
[1718540819238,15.1097,145.3,145.28,2.5468]
[1718540819748,15.1097,145.3,145.28,7.6403]
[1718540820939,15.1097,145.3,145.27,25.4687]
[1718540823029,15.1097,145.3,145.27,7.6406]
[1718540824337,15.1097,145.3,145.27,2.5468]
[1718540824934,15.1097,145.3,145.27,7.6407]
[1718540825134,15.1097,145.3,145.27,15.2816]
[1718540825849,15.1097,145.3,145.27,7.6407]
[1718540826042,15.1097,145.3,145.27,2.5468]
[1718540826743,15.1097,145.3,145.27,7.6407]
[1718540827720,15.1097,145.3,145.27,15.2816]
[1718540827919,15.1097,145.3,145.27,7.6407]
[1718540830334,16.1161,145.34,145.22,6.4284]
[1718540830568,16.1161,145.34,145.32,7.638]
[1718540830863,16.1161,145.34,145.31,2.5461]
[1718540831056,16.1161,145.34,145.32,2.546]
[1718540831558,16.1161,145.34,145.3,22.9171]
[1718540831737,16.1161,145.34,145.31,2.5462]
[1718540832128,16.1161,145.34,145.31,7.6387]
[1718540832332,16.1161,145.34,145.31,2.5462]
[1718540832543,16.1161,145.34,145.3,25.4634]
[1718540832753,16.1161,145.34,145.31,2.5462]
[1718540834335,16.1161,145.34,145.3,2.5464]
[1718540836073,16.1161,145.34,145.3,15.2784]
[1718540836268,16.1161,145.34,145.31,2.5462]
[1718540837072,16.1161,145.34,145.3,22.9177]
[1718540837256,16.1161,145.34,145.31,2.5462]
[1718540840266,16.1161,145.34,145.31,7.6387]
[1718540840904,16.1161,145.34,145.31,2.5462]
[1718540842982,16.1161,145.34,145.31,7.6387]
[1718540849084,16.1161,145.34,145.31,15.2775]
[1718540851715,16.1161,145.34,145.31,7.6387]
[1718540856409,16.1161,145.34,145.3,25.4635]
[1718540857227,16.1161,145.34,145.31,2.5462]
[1718540860134,16.1161,145.34,145.31,7.6386]
[1718540860812,16.1161,145.34,145.31,15.2774]
[1718540862952,16.1161,145.34,145.31,5.0924]
[1718540863251,16.1161,145.34,145.31,7.6385]
[1718540867142,16.1161,145.34,145.31,15.2772]
[1718540867348,16.1161,145.34,145.32,2.546]
[1718540867943,16.1161,145.34,145.24,5.40212776]
[1718540867944,16.1161,145.34,145.33,25.4591]
[1718540868126,0.7131806,145.35,145.33,17.8214]
[1718540868325,0.7131806,145.35,145.34,2.5457]
[1718540868847,0.7131806,145.35,145.33,22.913]
[1718540869013,0.7131806,145.35,145.34,2.5457]
[1718540869219,0.7131806,145.35,145.33,25.4587]
[1718540869851,0.7131806,145.35,145.33,2.5457]
[1718540870010,0.7131806,145.35,145.32,7.638]
[1718540870216,0.7131806,145.35,145.32,2.546]
[1718540870528,0.7131806,145.35,145.31,22.9155]
[1718540870847,0.7131806,145.35,145.32,2.546]
[1718540871429,0.7131806,145.35,145.31,25.4621]
[1718540871748,0.7131806,145.35,145.31,7.6386]
[1718540872717,0.7131806,145.35,145.32,2.546]
[1718540873340,0.7131806,145.35,145.32,7.6382]
[1718540873924,0.7131806,145.35,145.32,2.546]
[1718540874121,0.7131806,145.35,145.33,5.0916]
[1718540874327,0.7131806,145.35,145.32,25.46]
[1718540874942,0.7131806,145.35,145.33,2.5459]
[1718540875118,0.7131806,145.35,145.33,7.6377]
[1718540876027,0.7131806,145.35,145.33,15.2754]
[1718540876233,0.7131806,145.35,145.34,2.5457]
[1718540877546,0.7131806,145.35,145.33,25.4582]
[1718540878263,0.7131806,145.35,145.34,2.5457]
[1718540878463,0.7131806,145.35,145.34,25.4574]
[1718540880542,0.7131806,145.35,145.34,7.6372]
[1718540880735,0.7131806,145.35,145.34,15.2744]
[1718540881251,0.7131806,145.35,145.34,25.4574]
[1718540882261,0.7131806,145.35,145.34,2.5457]
[1718540882567,0.7131806,145.35,145.34,15.2744]
[1718540882736,0.7131806,145.35,145.34,7.6372]
[1718540883056,0.7131806,145.35,145.34,2.5457]
[1718540883567,0.7131806,145.35,145.32,22.9141]
[1718540883770,0.7131806,145.35,145.33,2.5458]
[1718540884061,0.7131806,145.35,145.34,2.5457]
[1718540884557,0.7131806,145.35,145.33,15.2751]
[1718540884934,0.7131806,145.35,145.34,2.5457]
[1718540885350,0.7131806,145.35,145.34,2.8509063]
[1718540885549,0.7131806,145.35,145.34,25.7626063]
[1718540885859,0.7131806,145.35,145.34,7.9424063]
[1718540887664,0.7131806,145.35,145.34,15.5796063]
[1718540887848,0.7131806,145.35,145.34,25.7626063]
[1718540899961,0.7131806,145.35,145.34,0.3052063]
[1718540900157,0.7131806,145.35,145.34,2.8509063]
[1718540900774,0.7131806,145.35,145.34,0.3052063]
[1718540901477,0.7131806,145.35,145.34,2.8509063]
[1718540901650,0.7131806,145.35,145.34,0.3052063]
[1718540902567,0.7131806,145.35,145.34,7.9424063]
[1718540902982,0.7131806,145.35,145.34,2.8509063]
[1718540903692,0.7131806,145.35,145.34,0.3052063]
[1718540904578,0.7131806,145.35,145.34,2.8509063]
[1718540905402,0.7131806,145.35,145.34,7.9424063]
[1718540907088,0.7131806,145.35,145.34,25.7626063]
[1718540907425,0.7131806,145.35,145.34,70.7626063]
[1718540907918,0.7131806,145.35,145.34,25.7626063]
[1718540908588,0.7131806,145.35,145.34,2.8509063]
[1718540908900,0.7131806,145.35,145.34,7.9424063]
[1718540910709,0.7131806,145.35,145.34,2.8509063]
[1718540911195,0.7131806,145.35,145.34,25.7626063]
[1718540911391,0.7131806,145.35,145.34,7.9424063]
[1718540912381,0.7131806,145.35,145.34,0.3052063]
[1718540913081,0.7131806,145.35,145.34,2.8509063]
[1718540913283,0.7131806,145.35,145.34,0.3052063]
[1718540913699,17.8924806,145.35,145.34,0.3052063]
[1718540924526,6.3294,145.34,145.28,2.5466]
[1718540924698,0.68,145.33,145.27,25.4687]
[1718540924902,0.17,145.31,145.22,6.5767]
[1718540925241,0.17,145.3,145.25,2.5472]
[1718540925405,0.68,145.3,145.26,2.5471]
[1718540925603,0.68,145.3,145.26,2.43395621]
[1718540926010,0.68,145.3,145.26,7.52815621]
[1718540926329,0.17,145.33,145.28,17.8271]
[1718540926536,0.17,145.32,145.28,2.5466]
[1718540926706,0.17,145.31,145.27,22.9218]
[1718540927030,0.17,145.31,145.28,2.5467]
[1718540927907,0.17,145.31,145.28,15.2804]
[1718540928118,0.17,145.31,145.29,2.5466]
[1718540928413,0.17,145.31,145.3,0.28877893]
[1718540930513,0.34,145.31,145.3,0.28877893]
[1718540930727,0.68,145.31,145.3,0.28877893]
[1718540942027,0.34,145.31,145.3,0.28877893]
[1718540946123,7.15770303,145.34,145.3,2.83517893]
[1718540946323,17.2124806,145.35,145.3,2.83517893]
[1718540946728,17.2124806,145.35,145.3,7.92807893]
[1718540947236,17.2124806,145.35,145.3,2.83517893]
[1718540948333,17.2124806,145.35,145.3,0.28877893]
[1718540948534,0.17,145.34,145.3,0.28877893]
[1718540948748,0.34,145.34,145.3,0.28877893]
[1718540949150,0.34,145.34,145.3,2.83517893]
[1718540949547,0.34,145.34,145.3,0.28877893]
[1718540953555,0.34,145.33,145.3,0.28877893]
[1718540955158,0.17,145.32,145.3,0.28877893]
[1718540955362,0.34,145.32,145.3,0.28877893]
[1718540958836,0.51,145.31,145.3,0.28877893]
[1718540959158,0.68,145.31,145.3,0.28877893]
[1718541000325,7.17567671,145.34,145.3,0.28877893]
[1718541000914,9.72137671,145.34,145.3,0.28877893]
[1718541001115,7.17567671,145.34,145.3,2.83507893]
[1718541001424,0.7131806,145.35,145.3,0.28877893]
[1718541001812,3.2586806,145.35,145.3,0.28877893]
[1718541002722,0.17,145.34,145.3,0.28877893]
[1718541002905,0.68,145.34,145.3,0.28877893]
[1718541003713,0.34,145.34,145.3,0.28877893]
[1718541004309,0.34,145.34,145.3,7.92797893]
[1718541004521,0.34,145.34,145.31,2.5462]
[1718541004728,0.34,145.34,145.3,25.75297893]
[1718541004913,0.34,145.34,145.3,7.92787893]
[1718541005226,0.7131806,145.35,145.3,7.92787893]
[1718541005434,0.7131806,145.35,145.3,25.75277893]
[1718541005620,0.7131806,145.35,145.31,2.5462]
[1718541005823,0.7131806,145.35,145.3,25.75277893]
[1718541006506,0.7131806,145.35,145.3,0.28877893]
[1718541006711,0.17,145.34,145.3,0.28877893]
[1718541007211,0.7131806,145.35,145.3,7.92797893]
[1718541007412,0.7131806,145.35,145.3,13.02077893]
[1718541007615,0.7131806,145.35,145.3,0.28877893]
[1718541007822,0.17,145.34,145.3,2.83517893]
[1718541008119,0.17,145.34,145.3,0.28877893]
[1718541008647,0.17,145.34,145.3,2.83517893]
[1718541010364,0.34,145.34,145.3,2.83517893]
[1718541012141,0.34,145.34,145.3,7.92797893]
[1718541012639,0.34,145.34,145.3,23.20667893]
[1718541013050,0.34,145.34,145.3,25.75297893]
[1718541014358,0.34,145.34,145.31,2.5462]
[1718541015360,0.34,145.34,145.3,25.75297893]
[1718541015559,0.34,145.34,145.3,7.92787893]
[1718541015855,0.34,145.34,145.3,15.56717893]
[1718541017457,0.34,145.34,145.31,2.5462]
[1718541017847,0.17,145.34,145.31,7.6387]
[1718541018568,0.17,145.34,145.31,2.5462]
[1718541020557,0.17,145.34,145.3,25.75277893]
[1718541021958,0.17,145.34,145.31,2.5462]
[1718541022269,0.17,145.34,145.3,25.75277893]
[1718541022763,0.17,145.34,145.3,15.56707893]
[1718541023360,0.17,145.34,145.3,25.75247893]
[1718541023671,0.17,145.34,145.3,7.92777893]
[1718541024169,0.7131806,145.35,145.31,12.7309]
[1718541024353,0.7131806,145.35,145.32,7.6381]
[1718541026083,0.7131806,145.35,145.32,2.546]
[1718541028165,0.7131806,145.35,145.31,7.6384]
[1718541028475,0.7131806,145.35,145.31,2.5461]
[1718541029675,0.7131806,145.35,145.3,23.20587893]
[1718541029676,0.7131806,145.35,145.3,25.75217893]
[1718541029980,0.7131806,145.35,145.31,2.5462]
[1718541030659,0.7131806,145.35,145.31,15.2774]
[1718541031162,0.7131806,145.35,145.32,2.546]
[1718541031370,0.7131806,145.35,145.32,2.5461]
[1718541031851,0.7131806,145.35,145.31,25.4623]
[1718541032058,0.7131806,145.35,145.32,2.546]
[1718541035661,0.7131806,145.35,145.3,25.75197893]
[1718541036282,0.7131806,145.35,145.31,2.5462]
[1718541036658,0.7131806,145.35,145.31,7.6387]
[1718541037794,0.7131806,145.35,145.31,15.2775]
[1718541038676,0.7131806,145.35,145.32,2.546]
[1718541039473,0.7131806,145.35,145.31,25.4624]
[1718541039694,0.7131806,145.35,145.32,7.6381]
[1718541040079,0.7131806,145.35,145.32,2.546]
[1718541040394,0.7131806,145.35,145.3,5.38147893]
[1718541040395,0.17,145.34,145.3,5.38147893]
[1718541040569,0.17,145.34,145.3,15.56707893]
[1718541040570,0.68,145.34,145.3,15.56707893]
[1718541040771,0.68,145.34,145.3,7.92777893]
[1718541041178,0.68,145.34,145.3,15.56707893]
[1718541041500,0.68,145.34,145.31,2.5462]
[1718541043496,0.68,145.34,145.3,7.92777893]
[1718541044989,0.68,145.34,145.3,0.28877893]
[1718541045971,9.557,145.34,145.3,0.28877893]
[1718541046170,7.0113,145.34,145.3,0.28877893]
[1718541046700,0.17,145.32,145.3,0.28877893]
[1718541046904,0.68,145.32,145.3,0.28877893]
[1718541053994,3.2261,145.32,145.3,0.28877893]
[1718541054701,2.7162,145.31,145.3,0.28877893]
[1718541054909,19.549,145.31,145.3,0.28877893]
[1718541056420,17.0028,145.31,145.3,0.28877893]
[1718541060327,16.3228,145.31,145.3,0.28877893]
[1718541060620,7.17128421,145.33,145.3,0.28877893]
[1718541061481,9.71718421,145.33,145.3,0.28877893]
[1718541061688,0.17,145.31,145.3,0.28877893]
[1718541065505,0.51,145.32,145.3,0.28877893]
[1718541065815,0.17,145.32,145.3,0.28877893]
[1718541066011,0.68,145.33,145.3,0.28877893]
[1718541073429,0.17,145.34,145.3,0.28877893]
[1718541073615,0.68,145.34,145.3,0.28877893]
[1718541075433,3.2257,145.34,145.3,0.28877893]
[1718541075620,0.17,145.32,145.3,0.28877893]
[1718541075807,0.51,145.32,145.3,0.28877893]
[1718541076008,0.17,145.31,145.3,0.28877893]
[1718541076209,0.68,145.31,145.3,0.28877893]
[1718541078229,0.17,145.31,145.3,0.28877893]
[1718541078431,2.5458,145.34,145.3,0.28877893]
[1718541078634,0.68,145.33,145.3,0.28877893]
[1718541081422,23.22121625,145.35,145.3,7.92777893]
[1718541081639,0.34,145.34,145.3,7.92777893]
[1718541081844,0.34,145.34,145.3,2.83507893]
[1718541082139,0.34,145.34,145.3,0.28877893]
[1718541082541,0.34,145.34,145.3,2.83517893]
[1718541082840,0.17,145.33,145.3,2.83517893]
[1718541083008,0.17,145.33,145.3,0.28877893]
[1718541083517,0.17,145.33,145.3,2.83517893]
[1718541083923,0.17,145.33,145.3,0.28877893]
[1718541084325,0.17,145.33,145.3,2.83517893]
[1718541084543,0.17,145.33,145.3,0.28877893]
[1718541084923,0.7131806,145.35,145.33,2.5458]
[1718541085126,0.7131806,145.35,145.32,12.73]
[1718541085127,0.7131806,145.35,145.32,7.638]
[1718541085332,0.7131806,145.35,145.31,25.4615]
[1718541085641,0.7131806,145.35,145.31,7.6385]
[1718541086539,0.7131806,145.35,145.34,2.5457]
[1718541086745,0.7131806,145.35,145.3,6.58177893]
[1718541087053,0.7131806,145.35,145.32,2.546]
[1718541087448,0.7131806,145.35,145.31,22.9156]
[1718541087748,0.7131806,145.35,145.32,2.546]
[1718541088125,0.7131806,145.35,145.32,15.2762]
[1718541088936,0.7131806,145.35,145.33,0.28871932]
[1718541089550,0.7131806,145.35,145.34,2.5457]
[1718541089729,0.7131806,145.35,145.33,2.83461932]
[1718541089936,0.7131806,145.35,145.34,0.28869946]
[1718541095263,0.7131806,145.35,145.34,7.92589946]
[1718541095939,0.7131806,145.35,145.34,2.83439946]
[1718541096853,0.7131806,145.35,145.34,7.92589946]
[1718541097243,0.7131806,145.35,145.34,15.56309946]
[1718541098163,0.7131806,145.35,145.34,7.92589946]
[1718541098551,0.7131806,145.35,145.34,2.83439946]
[1718541098767,0.7131806,145.35,145.34,25.74609946]
[1718541100873,0.7131806,145.35,145.34,15.56309946]
[1718541101971,0.7131806,145.35,145.34,0.28869946]
[1718541102662,0.7131806,145.35,145.34,2.83439946]
[1718541102871,0.7131806,145.35,145.34,0.28869946]
[1718541105369,0.7131806,145.35,145.34,2.83439946]
[1718541105574,0.7131806,145.35,145.34,0.28869946]
[1718541105758,0.7131806,145.35,145.34,2.83439946]
[1718541106472,0.7131806,145.35,145.34,15.56309946]
[1718541107359,0.7131806,145.35,145.34,25.74609946]
[1718541112403,0.7131806,145.35,145.34,2.83439946]
[1718541112555,0.7131806,145.35,145.34,0.28869946]
[1718541114282,0.8831806,145.35,145.34,0.28869946]
[1718541119171,0.7131806,145.35,145.34,0.28869946]
[1718541119377,0.7131806,145.35,145.34,25.74609946]
[1718541119679,0.7131806,145.35,145.34,0.28869946]
[1718541120080,0.7131806,145.35,145.34,2.83439946]
[1718541120282,0.7131806,145.35,145.34,25.74609946]
[1718541120512,0.7131806,145.35,145.34,7.92589946]
[1718541121122,0.7131806,145.35,145.34,25.74609946]
[1718541126384,0.7131806,145.35,145.34,45.74609946]
[1718541130422,16.0651,145.42,145.37,2.5451]
[1718541130631,16.0651,145.42,145.38,2.545]
[1718541131023,16.0651,145.42,145.38,7.635]
[1718541131539,16.0651,145.42,145.38,5.09]
[1718541131735,16.0651,145.42,145.38,7.6349]
[1718541132240,16.0651,145.42,145.38,8.28489512]
[1718541132443,16.0651,145.42,145.38,3.19489512]
[1718541132628,16.0651,145.42,145.38,2.5449]
[1718541133349,16.0651,145.42,145.34,20.28869946]
[1718541133527,0.17,145.44,145.39,25.4478]
[1718541133864,0.34,145.44,145.39,7.6344]
[1718541134166,0.34,145.44,145.39,2.5447]
[1718541134320,2.884,145.44,145.38,25.4494]
[1718541135233,2.884,145.44,145.39,2.5448]
[1718541135767,0.34,145.44,145.39,2.5448]
[1718541136354,2.884,145.44,145.39,2.5448]
[1718541136540,15.263,145.45,145.39,2.5448]
[1718541136854,0.17,145.45,145.4,7.6339]
[1718541137025,2.8838,145.45,145.4,2.5446]
[1718541137228,0.34,145.45,145.4,2.5446]
[1718541137448,2.8838,145.45,145.39,25.4477]
[1718541137750,7.9714,145.45,145.39,7.6342]
[1718541137964,15.6028,145.45,145.39,2.5447]
[1718541138460,2.5436,145.46,145.4,5.0892]
[1718541138755,2.5436,145.46,145.41,2.5444]
[1718541138951,2.5436,145.46,145.4,25.4463]
[1718541139560,2.5436,145.46,145.41,2.5445]
[1718541139858,0.17,145.45,145.4,25.4463]
[1718541140053,0.51,145.45,145.4,7.6337]
[1718541140353,0.34,145.45,145.41,7.6335]
[1718541140524,2.8836,145.46,145.41,2.5445]
[1718541141030,0.34,145.46,145.41,2.5445]
[1718541141378,2.8836,145.46,145.41,2.5445]
[1718541142162,0.34,145.46,145.41,2.5445]
[1718541142343,0.34,145.46,145.41,7.6335]
[1718541143667,0.34,145.45,145.4,12.7232]
[1718541143870,0.17,145.44,145.4,7.6337]
[1718541144560,0.17,145.44,145.41,2.5445]
[1718541145681,0.17,145.44,145.41,7.6334]
[1718541145980,0.34,145.45,145.41,7.6334]
[1718541147659,0.34,145.45,145.41,15.2669]
[1718541148168,0.34,145.45,145.42,2.5443]
[1718541148376,0.17,145.44,145.39,2.5448]
[1718541148564,18.7307,145.44,145.39,2.5448]
[1718541148908,0.17,145.43,145.39,2.5448]
[1718541149081,0.34,145.43,145.39,12.7242]
[1718541149379,0.17,145.42,145.39,2.5447]
[1718541149688,0.17,145.43,145.4,2.5446]
[1718541149859,0.34,145.43,145.4,2.5446]
[1718541151078,0.34,145.43,145.39,25.4483]
[1718541151590,0.34,145.42,145.38,2.545]
[1718541151880,0.17,145.41,145.38,2.545]
[1718541152352,0.17,145.41,145.38,7.635]
[1718541152956,0.34,145.42,145.39,2.5448]
[1718541153161,0.34,145.43,145.39,15.2691]
[1718541153462,0.17,145.42,145.39,15.2691]
[1718541153810,0.17,145.42,145.39,12.7243]
[1718541153960,0.17,145.42,145.39,7.6344]
[1718541154161,0.17,145.42,145.39,2.5447]
[1718541154477,0.17,145.42,145.38,7.6348]
[1718541154674,0.17,145.42,145.38,2.5449]
[1718541154871,0.51,145.42,145.38,7.635]
[1718541155088,0.51,145.42,145.37,2.5451]
[1718541155463,0.17,145.41,145.36,22.9078]
[1718541155689,0.51,145.41,145.37,2.5452]
[1718541155869,0.17,145.4,145.37,2.5452]
[1718541156187,0.51,145.41,145.38,2.545]
[1718541156188,0.17,145.41,145.38,2.545]
[1718541156357,0.17,145.41,145.38,7.6351]
[1718541157170,0.17,145.41,145.38,2.545]
[1718541157564,0.34,145.42,145.37,22.9067]
[1718541157878,2.8843,145.42,145.37,2.545]
[1718541158062,0.17,145.4,145.36,22.9079]
[1718541158263,0.34,145.4,145.36,7.6357]
[1718541158677,0.34,145.4,145.35,22.9091]
[1718541158882,0.34,145.4,145.36,2.5453]
[1718541159468,0.34,145.4,145.37,2.5452]
[1718541160098,0.17,145.4,145.38,2.5449]
[1718541160276,0.34,145.41,145.37,25.4516]
[1718541160484,0.17,145.41,145.38,2.5449]
[1718541160698,0.34,145.41,145.38,2.5449]
[1718541161984,0.34,145.41,145.37,7.6353]
[1718541162789,0.34,145.41,145.37,2.5451]
[1718541163678,0.34,145.41,145.37,2.5452]
[1718541164410,0.34,145.41,145.36,25.4527]
[1718541164572,0.34,145.41,145.37,2.5451]
[1718541164781,0.34,145.41,145.37,2.5452]
[1718541165090,0.34,145.41,145.36,22.9075]
[1718541165294,0.34,145.41,145.36,25.453]
[1718541166074,0.34,145.41,145.37,2.5452]
[1718541166469,0.34,145.41,145.36,7.6358]
[1718541166869,0.34,145.41,145.36,15.272]
[1718541167676,0.34,145.41,145.37,2.5452]
[1718541168703,2.8846,145.41,145.35,25.4549]
[1718541169302,2.8846,145.41,145.35,7.6363]
[1718541169476,0.34,145.4,145.36,2.5454]
[1718541169675,0.34,145.4,145.35,25.4552]
[1718541169676,0.17,145.39,145.35,25.4552]
[1718541170399,0.17,145.39,145.36,2.5453]
[1718541171002,0.17,145.39,145.35,17.8186]
[1718541171181,0.17,145.39,145.35,7.6363]
[1718541171376,0.17,145.39,145.35,15.273]
[1718541172103,0.17,145.39,145.36,2.5453]
[1718541173290,0.17,145.39,145.36,7.636]
[1718541174085,0.17,145.39,145.37,2.5452]
[1718541174403,0.17,145.39,145.36,22.9084]
[1718541174591,0.17,145.39,145.37,2.5452]
[1718541175304,0.17,145.39,145.36,25.4536]
[1718541175701,0.17,145.39,145.36,17.8175]
[1718541175880,0.17,145.39,145.36,7.6359]
[1718541176395,0.17,145.39,145.36,2.5452]
[1718541177497,0.17,145.39,145.36,7.6359]
[1718541179095,0.17,145.39,145.36,2.5452]
[1718541179405,6.1522,145.42,145.36,10.1813]
[1718541179708,6.1522,145.42,145.37,25.4514]
[1718541180092,6.1522,145.42,145.37,7.6352]
[1718541180303,6.1522,145.42,145.37,2.545]
[1718541180498,8.6965,145.42,145.36,20.3622]
[1718541180703,0.34,145.41,145.37,2.5452]
[1718541181523,6.3222,145.42,145.37,7.6356]